bitfinex/quotes_SOLUSD_20241231
["timestamp","ask_amount","ask_price","bid_price","bid_amount"]
[1735640310954,23.0,193.6,193.49,0.77491699]
[1735640311266,23.0,193.6,193.47,3.33396085]
[1735640311267,20.0,193.56,193.47,3.33396085]
[1735640311845,20.0,193.56,193.48,0.25098]
[1735640316689,20.0,193.56,193.47,0.37647]
[1735640318590,20.0,193.56,193.49,0.25098]
[1735640319583,20.0,193.56,193.48,0.77504706]
[1735640319785,20.0,193.56,193.44,10.29242978]
[1735640319988,20.0,193.56,193.45,0.77511736]
[1735640320192,20.0,193.56,193.46,0.37647]
[1735640321293,20.0,193.56,193.45,0.37647]
[1735640321476,20.0,193.56,193.45,3.89128921]
[1735640321785,20.0,193.56,193.45,6.45091272]
[1735640322091,20.0,193.56,193.45,2.93609351]
[1735640322276,20.0,193.56,193.47,0.12549]
[1735640322987,30.076284,193.57,193.46,0.77511074]
[1735640323189,30.076284,193.57,193.45,0.90062899]
[1735640324190,0.12549,193.56,193.45,0.77513899]
[1735640324593,30.076284,193.57,193.45,0.77513899]
[1735640324897,30.076284,193.57,193.46,0.12549]
[1735640325679,30.076284,193.57,193.45,0.25098]
[1735640327474,30.076284,193.57,193.45,20.25098]
[1735640328401,23.776884,193.55,193.45,20.0]
[1735640328696,23.776884,193.55,193.43,0.77514028]
[1735640328896,23.776884,193.55,193.42,11.15762954]
[1735640329102,6.3684,193.54,193.42,0.86519976]
[1735640329306,1.5835,193.53,193.42,0.86519976]
[1735640329475,1.5835,193.53,193.42,3.42270884]
[1735640329975,1.5835,193.53,193.43,0.12549]
[1735640330399,1.5835,193.53,193.43,20.12549]
[1735640331276,1.5835,193.53,193.43,0.12549]
[1735640332697,20.0,193.51,193.42,0.86519976]
[1735640332898,1.5835,193.49,193.42,0.09]
[1735640333603,1.5835,193.49,193.42,0.21549]
[1735640334785,6.3684,193.5,193.46,0.25098]
[1735640334987,1.5835,193.54,193.47,10.66889978]
[1735640335297,1.5835,193.54,193.49,0.12549]
[1735640336988,1.5835,193.54,193.48,0.12549]
[1735640337189,1.5835,193.54,193.44,0.77499076]
[1735640337507,1.5835,193.54,193.42,0.09]
[1735640338273,20.0,193.52,193.43,0.37647]
[1735640339809,20.0,193.52,193.43,10.66889978]
[1735640340011,20.0,193.52,193.45,0.12549]
[1735640340606,20.0,193.52,193.45,0.25098]
[1735640340779,1.5835,193.54,193.49,0.12549]
[1735640340979,1.5835,193.54,193.49,0.90042292]
[1735640341201,1.5835,193.54,193.5,0.25098]
[1735640341504,6.3684,193.55,193.52,0.12549]
[1735640341992,1.6658,193.59,193.53,0.77484724]
[1735640342178,1.6658,193.59,193.53,0.90033724]
[1735640343400,1.6658,193.59,193.55,0.12549]
[1735640344309,1.6658,193.59,193.51,6.05766862]
[1735640344806,1.6658,193.59,193.52,0.25098]
[1735640345508,1.6658,193.59,193.54,0.12549]
[1735640346507,1.6658,193.59,193.53,0.12549]
[1735640347308,9.135,193.6,193.56,0.12549]
[1735640347480,3.0,193.6,193.58,0.12549]
[1735640347684,3.0,193.6,193.59,0.12549]
[1735640350318,3.0,193.6,193.52,0.77460847]
[1735640350492,3.0,193.6,193.54,10.29242978]
[1735640350689,3.0,193.6,193.56,0.25098]
[1735640351999,3.0,193.6,193.57,0.90016063]
[1735640352188,3.0,193.6,193.58,0.25098]
[1735640354127,3.0,193.6,193.59,35.22034103]
[1735640356237,3.0,193.6,193.59,38.7178148]
[1735640357796,3.0,193.6,193.59,35.22034103]
[1735640359332,3.0,193.6,193.59,24.92791125]
[1735640359652,3.0,193.6,193.59,0.77455725]
[1735640359824,3.0,193.6,193.55,10.29242978]
[1735640360029,3.0,193.6,193.55,0.77467598]
[1735640360412,3.0,193.6,193.56,0.25098]
[1735640360813,3.0,193.6,193.55,0.77467598]
[1735640361015,3.0,193.6,193.53,11.06718066]
[1735640361638,3.0,193.6,193.54,0.25098]
[1735640362828,3.0,193.6,193.56,0.25098]
[1735640363142,3.0,193.6,193.56,10.54340978]
[1735640363326,3.0,193.6,193.58,0.12549]
[1735640366417,3.0,193.6,193.58,0.37647]
[1735640366617,3.0,193.6,193.59,1.02557667]
[1735640368246,3.0,193.6,193.56,16.83938808]
[1735640369051,3.0,193.6,193.57,0.25098]
[1735640369261,3.0,193.6,193.58,0.77460119]
[1735640373031,3.0,193.6,193.55,0.77462104]
[1735640373450,3.0,193.6,193.55,20.77462104]
[1735640373647,3.0,193.6,193.56,20.0]
[1735640374953,3.0,193.6,193.54,0.77474693]
[1735640377142,3.0,193.6,193.55,36.31579843]
[1735640377354,3.0,193.6,193.56,0.77465907]
[1735640377749,3.0,193.6,193.57,0.12549]
[1735640377946,3.0,193.6,193.57,0.25098]
[1735640382450,3.0,193.6,193.56,0.77465907]
[1735640382648,3.0,193.6,193.55,20.0]
[1735640383144,3.0,193.6,193.56,0.12549]
[1735640389857,1.5002,193.59,193.52,0.77474422]
[1735640390170,6.172,193.58,193.51,20.0]
[1735640390459,6.172,193.58,193.53,3.52226689]
[1735640391462,6.172,193.58,193.53,0.12549]
[1735640391756,6.172,193.58,193.52,3.52226689]
[1735640391956,6.172,193.58,193.5,0.25098]
[1735640392144,6.172,193.58,193.51,0.77489702]
[1735640396257,6.172,193.58,193.52,0.12549]
[1735640396475,6.172,193.58,193.52,0.25098]
[1735640396760,6.172,193.58,193.53,0.77480509]
[1735640399066,6.172,193.58,193.51,3.51970396]
[1735640399267,6.172,193.58,193.5,0.7748374]
[1735640399467,6.172,193.58,193.51,0.12549]
[1735640400267,6.172,193.58,193.5,0.7748374]
[1735640400453,6.172,193.58,193.47,0.77498981]
[1735640400654,6.172,193.58,193.48,0.37647]
[1735640401043,20.0,193.55,193.5,0.12549]
[1735640402568,6.2323,193.53,193.44,0.77499849]
[1735640402988,6.2323,193.53,193.45,0.12549]
[1735640403158,6.2323,193.53,193.45,3.64866827]
[1735640403350,6.2323,193.53,193.45,3.52317827]
[1735640403867,6.2323,193.53,193.45,0.12549]
[1735640404065,6.2323,193.53,193.44,0.77499849]
[1735640404272,6.2323,193.53,193.42,0.09]
[1735640404690,6.2323,193.53,193.44,0.25098]
[1735640404984,6.2323,193.53,193.46,0.12549]
[1735640405148,6.2323,193.53,193.48,0.12549]
[1735640406567,6.2323,193.53,193.48,0.37647]
[1735640406868,6.2323,193.53,193.5,0.12549]
[1735640407252,6.2323,193.53,193.49,0.12549]
[1735640407667,6.2323,193.53,193.48,0.12549]
[1735640407871,6.2323,193.53,193.46,0.7749953]
[1735640408059,6.2323,193.53,193.43,11.0591763]
[1735640408375,6.2323,193.53,193.44,13.802276]
[1735640408672,6.2323,193.53,193.44,3.51818804]
[1735640408876,6.2323,193.53,193.44,0.25098]
[1735640409670,6.2323,193.53,193.46,0.25098]
[1735640411354,6.2323,193.53,193.48,10.53506796]
[1735640411657,6.2323,193.53,193.5,10.53506796]
[1735640411851,6.2323,193.53,193.52,0.12549]
[1735640412254,1.5491,193.54,193.52,0.12549]
[1735640412667,1.5491,193.54,193.52,0.25098]
[1735640412870,1.5491,193.54,193.53,0.9003161]
[1735640414280,1.5491,193.54,193.53,0.12549]
[1735640415982,1.5491,193.54,193.51,0.77485631]
[1735640416181,1.5491,193.54,193.5,0.77490763]
[1735640416380,6.2323,193.57,193.51,10.53506796]
[1735640416571,6.2323,193.57,193.53,0.12549]
[1735640417589,6.2323,193.57,193.53,0.37647]
[1735640417779,6.2323,193.57,193.55,0.25098]
[1735640417982,6.2323,193.57,193.55,0.12549]
[1735640418788,6.2323,193.57,193.54,0.25098]
[1735640419162,1.5215,193.59,193.55,0.77476694]
[1735640419367,1.5215,193.59,193.56,0.12549]
[1735640420368,1.5215,193.59,193.56,0.25098]
[1735640420570,6.5524,193.62,193.58,0.12549]
[1735640423689,6.5524,193.62,193.59,0.77462021]
[1735640423989,1.5637,193.63,193.6,0.25098]
[1735640425700,2.74902,193.6,193.59,0.90011021]
[1735640427899,2.74902,193.6,193.59,1.15109021]
[1735640428294,2.74902,193.6,193.59,0.90011021]
[1735640430903,2.74902,193.6,193.59,0.77462021]
[1735640431080,2.74902,193.6,193.58,0.7745581]
[1735640431609,2.74902,193.6,193.54,0.77462055]
[1735640431785,2.74902,193.6,193.54,20.77462055]
[1735640432607,2.74902,193.6,193.55,0.12549]
[1735640432901,6.3435,193.59,193.52,0.77477679]
[1735640434306,6.3435,193.59,193.53,10.28408796]
[1735640434507,6.3435,193.59,193.54,0.77475949]
[1735640435300,6.3435,193.59,193.55,10.53506796]
[1735640435485,2.74902,193.6,193.56,0.77463937]
[1735640435689,2.74902,193.6,193.57,0.25098]
[1735640435918,2.74902,193.6,193.58,11.05865339]
[1735640436113,2.74902,193.6,193.59,0.25098]
[1735640436315,2.74902,193.6,193.59,34.43744196]
[1735640436782,2.74902,193.6,193.59,35.21191679]
[1735640440490,2.74902,193.6,193.57,0.77448867]
[1735640440886,2.74902,193.6,193.58,0.25098]
[1735640441087,2.74902,193.6,193.59,0.77453865]
[1735640441511,2.74902,193.6,193.59,1.02551865]
[1735640442108,2.74902,193.6,193.59,11.30960661]
[1735640443696,2.74902,193.6,193.59,11.43509661]
[1735640446114,2.74902,193.6,193.59,1.02551865]
[1735640448330,2.74902,193.6,193.59,0.77453865]
[1735640448692,2.74902,193.6,193.58,0.77458479]
[1735640449624,2.74902,193.6,193.58,11.05867275]
[1735640450317,2.74902,193.6,193.59,0.25098]
[1735640450521,2.74902,193.6,193.59,34.43744196]
[1735640450823,2.74902,193.6,193.59,35.21187904]
[1735640451923,2.74902,193.6,193.59,0.77443708]
[1735640452099,2.74902,193.6,193.54,12.9165]
[1735640452303,2.74902,193.6,193.55,11.05870528]
[1735640452501,2.74902,193.6,193.56,10.28408796]
[1735640452811,2.74902,193.6,193.58,0.25098]
[1735640454931,2.74902,193.6,193.59,1.02553358]
[1735640456011,2.74902,193.6,193.59,4.53828819]
[1735640458227,2.74902,193.6,193.59,14.94786615]
[1735640458525,2.74902,193.6,193.59,38.72475015]
[1735640460452,2.74902,193.6,193.59,28.44066219]
[1735640462137,2.74902,193.6,193.59,38.72475015]
[1735640462434,2.74902,193.6,193.59,4.28730819]
[1735640463254,2.74902,193.6,193.59,0.77455358]
[1735640463457,2.74902,193.6,193.58,0.77456942]
[1735640464365,2.74902,193.6,193.56,0.77461348]
[1735640464667,2.74902,193.6,193.57,24.153354]
[1735640464827,2.74902,193.6,193.59,3.52507121]
[1735640466430,2.74902,193.6,193.59,3.77605121]
[1735640469460,2.74902,193.6,193.59,37.96251317]
[1735640471854,2.74902,193.6,193.59,175.56251317]
[1735640472226,2.74902,193.6,193.59,165.27842521]
[1735640472550,2.74902,193.6,193.59,175.56251317]
[1735640472936,2.74902,193.6,193.59,218.21736501]
[1735640472937,2e-05,193.6,193.59,218.21736501]
[1735640473643,8.2703,193.73,193.63,0.37647]
[1735640473851,8.2703,193.73,193.67,24.153354]
[1735640474056,8.2703,193.73,193.68,0.77417059]
[1735640476146,8.2703,193.73,193.64,0.77420104]
[1735640476938,8.2703,193.73,193.65,3.51736694]
[1735640477553,8.2703,193.73,193.64,0.77420104]
[1735640478458,20.0,193.7,193.64,0.77420104]
[1735640478759,20.0,193.7,193.61,10.28408796]
[1735640478760,20.0,193.7,193.65,3.518394]
[1735640479557,20.0,193.7,193.64,3.518394]
[1735640480157,20.0,193.7,193.63,3.518394]
[1735640480452,20.0,193.7,193.64,1.02538417]
[1735640481345,20.0,193.7,193.66,0.25098]
[1735640482654,20.0,193.7,193.62,0.77430798]
[1735640483161,20.0,193.7,193.59,0.77446405]
[1735640483734,20.0,193.7,193.6,3.52190118]
[1735640484145,20.0,193.7,193.61,24.153354]
[1735640484349,20.0,193.66,193.59,0.77446548]
[1735640484847,20.0,193.66,193.6,0.25098]
[1735640485040,20.0,193.66,193.59,0.77446548]
[1735640485235,1.5614,193.65,193.55,0.77450239]
[1735640485458,1.5614,193.65,193.56,54.43744196]
[1735640485642,1.5614,193.65,193.58,24.153354]
[1735640486160,1.5614,193.65,193.59,3.5224191]
[1735640486860,1.5614,193.65,193.57,0.25098]
[1735640487660,7.7107,193.69,193.61,10.53506796]
[1735640487840,7.7107,193.69,193.63,0.25098]
[1735640488763,7.7107,193.69,193.64,0.77436507]
[1735640489339,7.7107,193.69,193.65,0.25098]
[1735640490962,7.7107,193.69,193.64,0.77436507]
[1735640491152,7.7107,193.69,193.63,0.77441136]
[1735640493364,7.7107,193.69,193.61,0.77439662]
[1735640494845,7.7107,193.69,193.62,24.153354]
[1735640495049,7.7107,193.69,193.64,0.25098]
[1735640495248,7.7107,193.69,193.65,0.77428548]
[1735640495667,1.5386,193.74,193.67,0.12549]
[1735640495966,1.5386,193.74,193.68,0.25098]
[1735640496170,1.5386,193.74,193.69,0.77421656]
[1735640496842,1.5386,193.74,193.71,0.12549]
[1735640497042,1.5386,193.74,193.72,0.25098]
[1735640497458,7.6955,193.79,193.72,24.027864]
[1735640497666,7.6955,193.79,193.74,0.25098]
[1735640498172,7.6955,193.79,193.73,0.77398841]
[1735640498465,7.6955,193.79,193.71,10.28408796]
[1735640498466,7.6955,193.79,193.71,0.7739442]
[1735640498668,7.6955,193.79,193.72,0.25098]
[1735640498855,7.6955,193.79,193.73,0.77398279]
[1735640499260,7.6955,193.79,193.74,0.25098]
[1735640499466,7.6955,193.79,193.75,0.77392385]
[1735640500248,7.6955,193.79,193.76,24.027864]
[1735640502053,6.1569,193.79,193.76,24.027864]
[1735640502366,7.6955,193.84,193.78,0.25098]
[1735640503478,7.6955,193.84,193.78,24.027864]
[1735640503648,7.6955,193.84,193.79,0.77374692]
[1735640504366,7.6955,193.84,193.8,0.25098]
[1735640504977,7.6955,193.84,193.8,24.027864]
[1735640505288,7.6955,193.84,193.8,0.25098]
[1735640506776,7.6955,193.84,193.8,24.027864]
[1735640506978,7.6955,193.84,193.81,0.77362781]
[1735640507463,6.1749,193.89,193.82,0.25098]
[1735640507677,6.1749,193.89,193.86,0.25098]
[1735640507854,6.1749,193.94,193.88,0.25098]
[1735640508349,6.1749,193.94,193.89,0.77338425]
[1735640508762,6.1749,193.94,193.9,0.25098]
[1735640509578,6.1749,193.94,193.89,0.77338425]
[1735640510575,6.1749,193.94,193.9,0.25098]
[1735640510770,6.1749,193.94,193.91,0.12549]
[1735640510978,7.7002,193.99,193.92,0.25098]
[1735640512360,7.7002,193.99,193.93,0.12549]
[1735640513696,7.7002,193.99,193.92,1.02411446]
[1735640513861,7.7002,193.99,193.89,16.03582324]
[1735640514059,7.7002,193.99,193.88,16.80899466]
[1735640514279,7.7002,193.99,193.89,16.03582324]
[1735640514489,7.7002,193.99,193.9,0.25098]
[1735640514767,7.7002,193.99,193.9,0.12549]
[1735640515573,7.7002,193.99,193.9,0.25098]
[1735640516358,7.7002,193.99,193.9,40.06368724]
[1735640516858,7.7002,193.99,193.9,24.027864]
[1735640518580,7.7002,193.99,193.9,40.06368724]
[1735640518958,7.7002,193.99,193.92,0.12549]
[1735640519274,7.7002,193.99,193.93,0.12549]
[1735640519602,7.7002,193.99,193.93,0.89864203]
[1735640520379,7.7002,193.99,193.94,0.12549]
[1735640523281,6.5944,194.03,193.95,0.12549]
[1735640523489,6.5944,194.03,193.95,0.89861052]
[1735640524474,6.5944,194.03,193.97,0.12549]
[1735640524778,6.5944,194.03,193.97,0.89851493]
[1735640524984,6.5944,194.07,193.98,0.12549]
[1735640525184,6.5944,194.07,193.99,0.77295074]
[1735640526157,6.5944,194.07,194.0,23.776884]
[1735640526363,6.5944,194.07,194.0,24.153354]
[1735640528062,6.5944,194.07,194.0,40.18917724]
[1735640528282,6.5944,194.07,194.0,40.96200951]
[1735640528484,20.0,194.09,194.0,40.96200951]
[1735640529084,6.5944,194.12,194.0,40.96200951]
[1735640529265,6.5944,194.12,194.03,16.03582324]
[1735640529470,6.5944,194.12,194.04,24.153354]
[1735640529999,81.6,194.17,194.04,24.153354]
[1735640530000,6.5944,194.17,194.06,24.153354]
[1735640530487,1.5988,194.18,194.1,40.18917724]
[1735640530674,6.5944,194.22,194.12,0.25098]
[1735640530880,6.5944,194.22,194.13,0.77243583]
[1735640532369,6.5944,194.22,194.14,24.027864]
[1735640532569,6.5944,194.22,194.14,40.06368724]
[1735640532771,6.5944,194.22,194.16,0.25098]
[1735640533072,284.11542055,194.45,194.17,0.25098]
[1735640533073,6.5944,194.27,194.17,0.25098]
[1735640533471,6.5944,194.27,194.17,24.027864]
[1735640533679,20.0,194.24,194.19,0.25098]
[1735640534074,20.0,194.25,194.17,23.776884]
[1735640534674,20.0,194.25,194.18,24.153354]
[1735640535311,20.0,194.25,194.18,0.37647]
[1735640537510,20.0,194.25,194.18,1.14863612]
[1735640539711,6.5944,194.28,194.18,1.14863612]
[1735640541509,6.5944,194.28,194.18,17.18445936]
[1735640541885,1.5988,194.29,194.2,16.41229324]
[1735640542087,6.0173,194.33,194.24,16.41229324]
[1735640542285,6.0173,194.33,194.26,0.37647]
[1735640542695,20.0,194.33,194.26,0.25098]
[1735640542891,7.6265,194.36,194.23,36.03582324]
[1735640543410,7.6265,194.36,194.24,24.153354]
[1735640543594,7.6265,194.36,194.26,0.37647]
[1735640543794,20.0,194.33,194.26,0.37647]
[1735640545008,20.0,194.33,194.28,24.153354]
[1735640545309,7.6265,194.36,194.28,24.027864]
[1735640546599,6.0173,194.36,194.29,0.12549]
[1735640546806,1.6092,194.41,194.3,24.027864]
[1735640546807,20.0,194.38,194.3,24.027864]
[1735640547523,20.0,194.38,194.29,0.77169166]
[1735640547732,20.0,194.38,194.27,16.80757303]
[1735640549645,20.0,194.38,194.28,24.027864]
[1735640550329,20.0,194.38,194.25,1.6371]
[1735640550535,20.0,194.34,194.2,7.32944174]
[1735640551133,0.12549,194.33,194.2,2.40904174]
[1735640551412,20.0,194.29,194.2,2.40904174]
[1735640551600,20.0,194.29,194.2,1.6371]
[1735640552714,20.0,194.29,194.21,0.12549]
[1735640554399,20.0,194.29,194.21,24.153354]
[1735640555113,7.6265,194.32,194.21,40.18917724]
[1735640555311,6.4773,194.36,194.24,0.12549]
[1735640555828,20.0,194.33,194.24,0.12549]
[1735640556010,20.0,194.33,194.25,24.027864]
[1735640556201,6.4773,194.36,194.25,24.027864]
[1735640556929,6.4773,194.36,194.26,0.12549]
[1735640557174,6.4773,194.41,194.27,24.027864]
[1735640557432,6.4773,194.41,194.28,0.12549]
[1735640557601,20.0,194.38,194.28,0.12549]
[1735640557801,20.0,194.38,194.29,24.027864]
[1735640561636,20.0,194.38,194.29,0.12549]
[1735640561800,20.0,194.38,194.24,20.95622324]
[1735640562100,20.0,194.38,194.27,20.0]
[1735640562894,20.0,194.38,194.28,40.06368724]
[1735640563121,20.0,194.38,194.28,41.59568724]
[1735640563321,20.0,194.38,194.3,0.12549]
[1735640563719,6.4773,194.41,194.3,0.25098]
[1735640565398,6.4773,194.41,194.28,25.308884]
[1735640565615,6.4773,194.41,194.29,20.0]
[1735640566699,6.4773,194.41,194.3,0.12549]
[1735640567318,1.5269,194.42,194.32,0.25098]
[1735640567700,20.0,194.43,194.32,0.25098]
[1735640568322,20.0,194.43,194.34,0.12549]
[1735640568523,6.5892,194.46,194.36,0.12549]
[1735640568837,20.0,194.43,194.36,0.12549]
[1735640570936,20.0,194.43,194.35,0.77153509]
[1735640572761,20.0,194.43,194.3,16.03582324]
[1735640572967,20.0,194.43,194.3,16.80742665]
[1735640573752,23.902374,194.42,194.28,1.532]
[1735640575154,23.902374,194.42,194.29,0.25098]
[1735640577753,23.902374,194.42,194.2,31.59582324]
[1735640577754,43.902374,194.38,194.26,16.03582324]
[1735640577956,43.902374,194.38,194.24,16.03582324]
[1735640578254,43.902374,194.38,194.26,0.12549]
[1735640578459,43.902374,194.38,194.25,19.51564722]
[1735640578757,43.902374,194.38,194.26,0.12549]
[1735640579154,43.902374,194.38,194.24,36.03582324]
[1735640579645,43.902374,194.38,194.26,0.12549]
[1735640579846,20.0,194.38,194.26,24.153354]
[1735640580036,20.0,194.38,194.28,0.25098]
[1735640581142,20.0,194.37,194.26,0.12549]
[1735640581342,20.0,194.37,194.27,0.25098]
[1735640582148,8.2016,194.41,194.27,0.25098]
[1735640582442,20.0,194.38,194.27,16.28680324]
[1735640582642,20.0,194.38,194.29,0.12549]
[1735640583043,20.0,194.38,194.28,20.0]
[1735640583360,20.0,194.37,194.27,0.12549]
[1735640583532,20.0,194.37,194.26,0.77184651]
[1735640583739,20.0,194.37,194.24,16.80772233]
[1735640583946,20.0,194.37,194.24,0.77189909]
[1735640584662,20.0,194.37,194.25,0.25098]
[1735640586039,20.0,194.38,194.24,0.77189909]
[1735640586336,20.12549,194.37,194.24,0.77189909]
[1735640586545,23.776884,194.36,194.24,0.77189909]
[1735640588361,8.2016,194.41,194.25,0.25098]
[1735640588664,8.2016,194.41,194.25,16.28680324]
[1735640588665,20.0,194.38,194.25,16.28680324]
[1735640588866,20.0,194.38,194.26,0.77185861]
[1735640590461,8.2016,194.41,194.26,0.77185861]
[1735640590648,23.902374,194.4,194.27,0.12549]
[1735640592262,20.0,194.37,194.27,0.12549]
[1735640592470,23.902374,194.36,194.23,2.36851986]
[1735640592655,20.0,194.33,194.23,2.36851986]
[1735640592853,26.4857,194.33,194.23,2.36851986]
[1735640593166,28.1267,194.33,194.19,1.6504]
[1735640593383,20.0,194.29,194.19,1.6504]
[1735640594157,20.0,194.29,194.2,0.12549]
[1735640594357,8.1267,194.33,194.2,0.25098]
[1735640594756,20.0,194.3,194.2,0.25098]
[1735640596265,20.0,194.3,194.2,16.28680324]
[1735640596468,20.0,194.3,194.2,0.25098]
[1735640596768,20.0,194.3,194.19,1.6504]
[1735640599453,20.0,194.3,194.2,0.12549]
[1735640599650,20.0,194.3,194.2,16.16131324]
[1735640599849,20.0,194.3,194.2,0.25098]
[1735640600987,20.0,194.3,194.2,3.7424006]
[1735640603360,20.0,194.3,194.2,0.25098]
[1735640603561,20.0,194.3,194.2,16.28680324]
[1735640603768,20.0,194.3,194.22,0.25098]
[1735640604656,20.0,194.3,194.19,37.68622324]
[1735640604977,20.0,194.3,194.21,0.12549]
[1735640606478,20.0,194.3,194.23,0.12549]
[1735640606971,20.0,194.3,194.21,0.37647]
[1735640607776,20.0,194.3,194.21,0.25098]
[1735640613587,20.0,194.3,194.21,0.12549]
[1735640615485,20.0,194.3,194.2,3.49066657]
[1735640615878,20.0,194.3,194.2,0.12549]
[1735640616078,20.0,194.3,194.17,20.77214363]
[1735640616280,20.0,194.3,194.17,0.77214363]
[1735640616487,20.0,194.3,194.18,3.61843693]
[1735640617070,20.0,194.3,194.18,0.12549]
[1735640617271,20.0,194.3,194.17,0.25098]
[1735640617592,20.0,194.3,194.17,3.74534833]
[1735640617969,20.0,194.3,194.17,0.25098]
[1735640618190,20.0,194.3,194.17,10.46440158]
[1735640619281,20.0,194.3,194.17,0.25098]
[1735640620692,20.0,194.26,194.17,0.12549]
[1735640623094,20.0,194.26,194.17,0.25098]
[1735640623986,20.0,194.26,194.17,0.12549]
[1735640627103,8.1267,194.33,194.18,10.46440158]
[1735640627479,20.0,194.29,194.18,10.46440158]
[1735640627679,20.0,194.29,194.19,0.77218471]
[1735640628517,20.0,194.29,194.16,10.9856218]
[1735640628801,20.0,194.29,194.16,0.77220022]
[1735640629591,20.0,194.29,194.16,0.25098]
[1735640632715,20.0,194.25,194.16,0.25098]
[1735640633520,20.0,194.25,194.15,0.77231694]
[1735640633726,20.0,194.25,194.14,12.54528486]
[1735640634009,0.12549,194.32,194.19,10.21342158]
[1735640634302,44.153354,194.29,194.16,0.77215614]
[1735640634491,44.153354,194.29,194.15,13.71219806]
[1735640634896,44.153354,194.29,194.16,3.49877648]
[1735640635492,44.153354,194.29,194.15,0.25098]
[1735640635690,44.153354,194.29,194.15,10.46440158]
[1735640636388,43.902374,194.29,194.16,3.50017982]
[1735640636589,43.776884,194.29,194.17,0.25098]
[1735640639006,43.776884,194.29,194.18,0.37647]
[1735640639187,8.1267,194.33,194.2,0.25098]
[1735640639612,23.776884,194.32,194.2,0.25098]
[1735640640309,20.0,194.29,194.2,0.25098]
[1735640640719,20.0,194.29,194.19,1.6265]
[1735640644640,20.0,194.25,194.19,1.6265]
[1735640647998,23.776884,194.24,194.19,1.6265]
[1735640649398,20.0,194.29,194.19,1.6265]
[1735640650122,6.4857,194.33,194.21,4.9204]
[1735640650424,20.0,194.3,194.21,4.9204]
[1735640652537,23.776884,194.29,194.19,1.6265]
[1735640655926,23.776884,194.29,194.19,11.83992158]
[1735640656227,23.776884,194.29,194.19,1.6265]
[1735640656927,20.0,194.3,194.2,3.75831432]
[1735640657115,23.776884,194.29,194.2,3.50733432]
[1735640657520,23.776884,194.29,194.19,1.6265]
[1735640660121,20.0,194.26,194.19,1.6265]
[1735640661027,20.0,194.26,194.2,3.51134419]
[1735640661334,20.0,194.3,194.2,3.51134419]
[1735640661837,20.0,194.3,194.2,0.25098]
[1735640662006,6.4857,194.33,194.2,0.25098]
[1735640662205,8.05176929,194.35,194.22,0.25098]
[1735640662425,8.05176929,194.35,194.22,10.46440158]
[1735640662620,8.05176929,194.36,194.22,10.46440158]
[1735640662930,8.05176929,194.36,194.24,0.25098]
[1735640663111,8.05176929,194.36,194.25,1.6179]
[1735640663319,20.0,194.34,194.26,0.25098]
[1735640663509,23.776884,194.37,194.26,0.25098]
[1735640664528,8.05176929,194.38,194.26,0.25098]
[1735640664529,20.0,194.34,194.26,0.25098]
[1735640664909,20.0,194.38,194.28,0.25098]
[1735640665426,16.03216929,194.42,194.28,0.25098]
[1735640665820,20.0,194.39,194.28,0.25098]
[1735640669837,20.0,194.39,194.29,0.12549]
[1735640673552,20.0,194.39,194.3,0.25098]
[1735640673747,20.0,194.39,194.3,1.81848]
[1735640677242,20.0,194.35,194.3,1.5675]
[1735640678243,89.2732,194.47,194.3,1.5675]
[1735640678244,20.0,194.44,194.3,1.5675]
[1735640678650,44.153354,194.43,194.3,1.5675]